Cogmind - Beta 17.1 @@@ ROGUE MODE // 2026.09.12 @ 13:52:33 Player: aihara Result: Destroyed by NZ-0B3(B) with Heavy Battle Rifle Performance ------------- Evolutions (1) 500 Regions Visited (5) 1000 Robots Destroyed (69) 345 Value Destroyed (1862) 1862 Prototype IDs (5) 100 Alien Tech Used (0) 0 Bonus (748) 748 TOTAL SCORE: 4555 Bonus ------- High Alert Combat Kills 73 Follower Combat Kills 100 Met Imprinter 300 Was Imprinted 300 Friendly Fire -25 Cogmind --------- Core Integrity 0/400 Matter 186/300 Energy 73/100 System Corruption 3% Temperature Cool (20) Movement Rolling (100) Location -7/Zion Parts ------- > --- POWER (2) -------- (None) > --- PROPULSION (3) --- Compact Wheel > --- UTILITY (2) ------ (None) > --- WEAPON (2) ------- Light Cannon > --- INVENTORY (5) ---- Light Ion Engine Spread Laser Peak State ------------ > --- POWER ------------ Ion Engine Improved Ion Engine > --- PROPULSION ------- Aluminum Leg Aluminum Leg Aluminum Leg > --- UTILITY ---------- Targeting Computer Splice Drone Bay > --- WEAPON ----------- Improved Assault Rifle Improved Assault Rifle > --- INVENTORY -------- Medium Matter Pod Weapon Shielding Advanced Beam Cannon Rocket Launcher Makeshift Spear [Rating: 21] Favorites ----------- Power Ion Engine Engine Ion Engine Power Core Light Nuclear Core Propulsion Aluminum Leg Treads Light Treads Leg Aluminum Leg Wheel Wheel Utility Signal Interpreter Device Splice Drone Bay Storage Medium Matter Pod Processor Signal Interpreter Protection Core Shielding Weapon Light Cannon Energy Gun Medium Laser Energy Cannon Advanced Beam Cannon Ballistic Gun Improved Assault Rifle Ballistic Cannon Light Cannon Launcher Rocket Launcher Slashing Weapon Mining Claw Build | -11 -10 -10 -9 -9 -7 ------- Run | Yrd Mat Min Mat Min Zio Slots Evolved 2 | . . . 2 . . Power 1 | . . . 1 . . Propulsion 1 | . . . 1 . . Utility . | . . . . . . Weapon . | . . . . . . Parts Attached 57 | 5 16 2 32 . 2 Power 14 | 1 3 . 10 . . Engine 13 | 1 2 . 10 . . Core 1 | . 1 . . . . Reactor . | . . . . . . Propulsion 17 | 2 4 . 11 . . Treads 2 | . . . 2 . . Leg 8 | . 4 . 4 . . Wheel 7 | 2 . . 5 . . Hover . | . . . . . . Flight . | . . . . . . Utility 9 | . 4 1 4 . . Device 2 | . 1 1 . . . Storage 1 | . 1 . . . . Processor 3 | . 1 . 2 . . Hackware . | . . . . . . Protection 3 | . 1 . 2 . . Artifact . | . . . . . . Weapon 17 | 2 5 1 7 . 2 Energy Gun 6 | 2 3 . 1 . . Energy Cannon 1 | . . . 1 . . Ballistic Gun 5 | . 1 . 4 . . Ballistic Cannon 3 | . . . 1 . 2 Launcher 1 | . . 1 . . . Special Weapon . | . . . . . . Impact Weapon . | . . . . . . Slashing Weapon 1 | . 1 . . . . Piercing Weapon . | . . . . . . Special Melee Weapon . | . . . . . . Unidentified Prototypes 3 | . . 1 2 . . Parts Lost 21 | . 6 . 7 . 8 Power 4 | . 1 . 1 . 2 Propulsion 8 | . 3 . 3 . 2 Utility 3 | . . . 1 . 2 Weapon 6 | . 2 . 2 . 2 Highest Loss Streak 8 | . 4 . 5 . 8 To Critical Strikes . | . . . . . . Average Backups 4 | 2 4 5 4 5 4 Power . | . . . . 1 1 Propulsion . | 1 1 . . . . Utility 1 | . 1 3 1 . . Weapon 2 | . 1 1 2 4 3 Tool/Special . | . . . . . . Unused Backups 6 | . 3 2 1 . . Power . | . . . . . . Propulsion 2 | . 2 . . . . Utility 1 | . . 1 . . . Weapon 3 | . 1 1 1 . . Tool/Special . | . . . . . . Average Slot Usage (%) 96 | . 93 100 95 100 97 Engine 18 | . 12 14 21 22 21 Leg 15 | . 18 28 19 . . Wheel 13 | . 8 . 8 33 32 Device 5 | . 3 14 6 . . Storage 1 | . 8 . . . . Processor 11 | . 11 14 11 11 10 Protection 4 | . . . 4 11 11 Energy Gun 5 | . 14 14 1 . . Energy Cannon 2 | . . . 3 11 . Ballistic Gun 6 | . 6 2 11 . . Ballistic Cannon 3 | . . . 2 11 10 Launcher 3 | . . 11 1 . 10 Slashing Weapon 1 | . 6 . . . . Peak Build Rating 21 | 5 9 14 21 12 12 Average Rating 12 | 3 6 11 16 11 10 On Entrance 8 | . 5 7 14 12 12 Avg Prop Armor Cover (%) . | . . . . . . Naked Turns . | . . . . . . Heaviest Build 26 | 7 10 19 26 18 18 Greatest Support 48 | 20 20 20 48 36 36 Greatest Overweight (x) 1 | . 1 . 1 . . Average Overweight (x) . | . . . . . . Largest Inventory Capacity 5 | 5 5 5 5 5 5 Average Capacity 5 | 5 5 5 5 5 5 Most Carried 5 | 4 5 5 5 5 5 Average Carried 4 | 2 4 4 4 5 4 Final Capacity 5 | 5 5 5 5 5 5 Final Carried 5 | 3 5 5 5 5 2 Class Distribution -------------------- 57% | Mutant 42% | Scavenger-Mutant Dominant Class ---------------- Mutant | -10/Materials Mutant | -10/Mines Mutant | -9/Materials Scavenger-Mutant | -9/Mines Scavenger-Mutant | -7/Zion Resources | -11 -10 -10 -9 -9 -7 ----------- Run | Yrd Mat Min Mat Min Zio Matter Collected 1489 | 250 281 42 838 58 20 Remotely . | . . . . . . Salvage Created 2221 | 50 438 . 1579 49 105 Parts 140 | 4 32 . 93 7 4 Haulers Intercepted . | . . . . . . Recyclers Shooed 2 | . 1 . 1 . . Parts Field Recycled . | . . . . . . Retrieved Matter . | . . . . . . Parts Self-Destructed 6 | . . . . . 6 Prevented . | . . . . . . Parts Restored . | . . . . . . Kills | -11 -10 -10 -9 -9 -7 ------- Run | Yrd Mat Min Mat Min Zio Combat Hostiles Destroyed 54 | 1 11 . 36 4 2 Melee 2 | . 2 . . . . Guns 31 | 1 9 . 21 . . Cannons 15 | . . . 11 4 . AOE 6 | . . . 4 . 2 Classes Destroyed 12 | 1 5 . 3 . 3 Worker 3 | . 1 . 2 . . Builder 1 | . 1 . . . . Recycler 2 | . . . 2 . . Operator 2 | . 1 . 1 . . Watcher 5 | . 1 . 4 . . Swarmer 16 | . 4 . 8 4 . Grunt 28 | 1 7 . 20 . . Duelist 1 | . . . 1 . . Sentry 7 | . . . 7 . . Hunter 1 | . . . . . 1 Zionite 2 | . . . . . 2 Marauder 1 | . . . . . 1 Best Kill Streak 4 | 1 4 . 4 4 3 Combat Bots Only 4 | 1 3 . 4 4 1 Max Kills in Single Turn 3 | 1 1 . 3 1 1 Gunslinging . | . . . . . . Exploded 2 | . . . 2 . 1 Melee 1 | . 1 . . . . Uniques/NPCs Destroyed . | . . . . . . Combat | -11 -10 -10 -9 -9 -7 -------- Run | Yrd Mat Min Mat Min Zio Hostile Shots Fired 332 | 5 113 . 153 11 50 Missed 89 | . 33 . 42 . 14 Hits 243 | 5 80 . 111 11 36 Melee 12 | . . . 3 . 9 Projectile 231 | 5 80 . 108 11 27 Critical Strikes 8 | . . . 2 . 6 Actively Blocked 1 | . . . . . 1 Damage Taken 3269 | 55 811 . 1581 86 736 Core 609 | . 202 . 139 23 245 Absorbed by Shields . | . . . . . . Redirected to Shielding 28 | . . . . 4 24 Core Remaining (%) 59 | 100 . 19 . . . Volleys Fired 208 | 4 70 2 115 5 12 Largest 2 | 2 2 2 2 2 2 Hottest 98 | 90 90 83 95 98 98 Shots Fired 347 | 8 98 4 208 10 19 Gun 272 | 8 98 2 164 . . Cannon 63 | . . . 42 10 11 Launcher 12 | . . 2 2 . 8 Special . | . . . . . . Kinetic 205 | . 32 . 159 5 9 Thermal 105 | 4 45 2 47 5 2 Explosive 12 | . . 2 2 . 8 Electromagnetic 25 | 4 21 . . . . Robot Hit Streak 15 | 7 15 2 11 4 5 Robot Miss Streak 6 | . 5 2 6 5 2 Penetration Max . | . . . . . . Secondary Targets 1 | . . . 1 . . Max Gunslinging Chain 1 | . . . 1 . . Shots Hit Robots 204 | 7 57 2 120 5 13 Core Hits 111 | 2 28 3 62 4 12 Critical Kills 1 | . . . 1 . . Critical Parts Destroyed . | . . . . . . Critical Strikes 5 | . 2 . 3 . . Burn 3 | . 1 . 2 . . Meltdown 1 | . . . 1 . . Corrupt 1 | . 1 . . . . Melee Attacks 8 | . 8 . . . . Impact . | . . . . . . Slashing 8 | . 8 . . . . Piercing . | . . . . . . Sneak Attacks . | . . . . . . Combat Hostiles . | . . . . . . Follow-up Attacks . | . . . . . . Damage Inflicted 3837 | 91 823 87 2346 95 395 Guns 2317 | 91 702 13 1511 . . Cannons 666 | . . . 436 95 135 Explosions 724 | . 41 72 351 . 260 Melee 73 | . 73 . . . . Ramming 57 | . 7 2 48 . . Kinetic 1665 | . 109 . 1430 32 94 Thermal 1237 | 38 368 13 714 63 41 Explosive 486 | . . 72 154 . 260 Electromagnetic 319 | 53 266 . . . . Impact . | . . . . . . Slashing 73 | . 73 . . . . Piercing . | . . . . . . Highest Corruption 3 | . . . 2 2 3 Average Corruption 2 | . . . 2 2 2 Corruption Purged . | . . . . . . Corruption Blocked . | . . . . . . Effects 8 | . . . 2 5 1 Message Errors 3 | . . . . 2 1 Heat Flow Errors 2 | . . . . 2 . Energy Discharges 1 | . . . 1 . . Data Loss (minor) 1 | . . . 1 . . Data Loss (major) 1 | . . . . 1 . Overload Shots . | . . . . . . Overflow Damage 71 | . . . 71 . . Projectiles 10 | . . . 10 . . Explosions 61 | . . . 61 . . Melee . | . . . . . . Knockbacks 1 | . . . . . 1 Impact . | . . . . . . Kinetic 1 | . . . . . 1 Secondary . | . . . . . . Self-Inflicted Damage 204 | . 3 . 190 . 11 Shots 3 | . . . 2 . 1 Rammed 4 | . 1 . 3 . . Targets Rammed 12 | . 1 1 10 . . Kicked 8 | . . 1 7 . . Crushed . | . . . . . . Highest Temperature 307 | 130 307 21 234 192 20 Average Temperature 66 | 65 84 10 62 84 9 Received Heat Transfer 675 | 30 237 . 408 . . Siege Activations . | . . . . . . Martial Activations . | . . . . . . Shielding Activations . | . . . . . . Robots Disrupted . | . . . . . . Combat Hostiles . | . . . . . . Robots Corrupted . | . . . . . . Combat Hostiles . | . . . . . . Parts Fried 1 | . 1 . . . . Impact Corruptions . | . . . . . . Robots Melted 1 | . . . 1 . . Combat Hostiles . | . . . . . . Parts Melted 4 | . 3 . 1 . . Heat Transferred 2798 | 111 1042 37 1423 111 74 Parts Sabotaged . | . . . . . . Parts Stolen . | . . . . . . Parts Stripped . | . . . . . . Power Chain Reactions 1 | . 1 . . . . Alert | -11 -10 -10 -9 -9 -7 ------- Run | Yrd Mat Min Mat Min Zio Maximum Alert Level 2 | . . . 2 1 . Low Security (%) 72 | 100 100 100 59 23 . Level 1 16 | . . . 16 76 . Level 2 10 | . . . 23 . . Level 3 . | . . . . . . Level 4 . | . . . . . . Level 5 . | . . . . . . High Security . | . . . . . . Max Security . | . . . . . . Peak Influence 668 | 20 79 62 668 300 . Initial 255 | . 6 4 . 255 . Average 135 | 1 18 8 228 226 . Influence Increases 1740 | 20 344 77 1174 105 20 Destroy 0b10 Robot/C 1140 | 20 220 40 760 80 20 Destroy 0b10 Robot/NC 65 | . 20 . 45 . . Destroy Leader 270 | . 62 10 188 10 . Allied During Kill 30 | . . 14 16 . . Successful Hack 71 | . 37 . 34 . . Disable Machine 60 | . . . 45 15 . Destroy Structure 74 | . 5 13 56 . . Lose Combat Pursuer 30 | . . . 30 . . Influence Decreases 1740 | 10 341 90 518 615 166 Entered New Map 560 | . 4 9 . 401 146 Time Decay 1058 | 10 317 81 428 214 8 Lost Part 102 | . 20 . 70 . 12 Lost Ally 20 | . . . 20 . . Squads Dispatched 9 | . 3 . 6 . . Investigation 6 | . 3 . 3 . . Extermination . | . . . . . . Reinforcement 3 | . . . 3 . . Assault . | . . . . . . Garrison . | . . . . . . Intercept . | . . . . . . Searches Triggered . | . . . . . . Construction Impeded . | . . . . . . Haulers Reinforced . | . . . . . . Active Scanning Responses . | . . . . . . Cargo Convoy Interrupts . | . . . . . . Stealth | -11 -10 -10 -9 -9 -7 --------- Run | Yrd Mat Min Mat Min Zio Distress Signals 2 | . 1 . 1 . . Communications Jammed . | . . . . . . Distress Signals . | . . . . . . Times Spotted 95 | 1 22 3 56 4 9 Peak Tracking Total 5 | 1 4 1 4 4 5 Tactical Retreats 1 | . . . 1 . . Traps | -11 -10 -10 -9 -9 -7 ------- Run | Yrd Mat Min Mat Min Zio Traps Triggered 2 | . . . 2 . . Indirectly . | . . . . . . Trap Hack Attempts . | . . . . . . Triggered . | . . . . . . Disarmed . | . . . . . . Reprogrammed . | . . . . . . Reused . | . . . . . . Traps Extracted . | . . . . . . Installed . | . . . . . . Triggered . | . . . . . . Machines | -11 -10 -10 -9 -9 -7 ---------- Run | Yrd Mat Min Mat Min Zio Machines Disabled 4 | . . . 3 1 . Max in Single Turn 2 | . . . 2 1 . Machines Repaired . | . . . . . . Machines Dismantled . | . . . . . . Machines Sabotaged . | . . . . . . Overloaded Fab Kills . | . . . . . . Hacking | -11 -10 -10 -9 -9 -7 --------- Run | Yrd Mat Min Mat Min Zio Machines Accessed 17 | . 7 1 9 . . Terminals 14 | . 6 . 8 . . Fabricators . | . . . . . . Repair Stations . | . . . . . . Recycling Units 2 | . 1 . 1 . . Scanalyzers . | . . . . . . Garrison Access . | . . . . . . Total Hacks 49 | . 28 1 20 . . Successful 28 | . 18 1 9 . . Failed 21 | . 10 . 11 . . Catastrophic 6 | . 3 . 3 . . Database Lockouts . | . . . . . . Manual 3 | . 3 . . . . Terminals 41 | . 22 . 19 . . Fabricators . | . . . . . . Repair Stations . | . . . . . . Recycling Units 7 | . 6 . 1 . . Scanalyzers . | . . . . . . Garrison Access . | . . . . . . Terminal Hacks 24 | . 15 1 8 . . Record 13 | . 12 . 1 . . Prototype ID Bank 1 | . 1 . . . . Open Door 1 | . . 1 . . . Terminal Index 1 | . . . 1 . . Alert Level 1 | . . . 1 . . Locate Traps 2 | . . . 2 . . Investigation Status 2 | . 1 . 1 . . Registered Components 1 | . . . 1 . . Zone Layout 2 | . 1 . 1 . . Fabricator Hacks . | . . . . . . Repair Station Hacks . | . . . . . . Recycling Unit Hacks 4 | . 3 . 1 . . Recycle Component 1 | . 1 . . . . Process 1 | . 1 . . . . Report Inventory 1 | . . . 1 . . Retrieve Components 1 | . 1 . . . . Scanalyzer . | . . . . . . Garrison Access Hacks . | . . . . . . Unauthorized Hacks . | . . . . . . Terminals . | . . . . . . Fabricators . | . . . . . . Repair Stations . | . . . . . . Recycling Units . | . . . . . . Scanalyzers . | . . . . . . Garrison Access . | . . . . . . Data Cores Recovered 2 | . 1 . 1 . . Used . | . . . . . . Hacking Detections 11 | . 6 . 5 . . Full Trace Events 10 | . 6 . 4 . . Feedback Events . | . . . . . . Feedback Blocked . | . . . . . . Robot Schematics Acquired 3 | . . . . . 3 Robots Built . | . . . . . . Authchips . | . . . . . . Time . | . . . . . . Total Robot Build Rating . | . . . . . . Part Schematics Acquired 15 | . . . . . 15 Parts Built . | . . . . . . Authchips . | . . . . . . Time . | . . . . . . Total Part Build Rating . | . . . . . . Part Studies Acquired . | . . . . . . Parts Repaired . | . . . . . . Time . | . . . . . . Parts Recycled 1 | . 1 . . . . Recycled Matter 180 | . 180 . . . . Retrieved Matter . | . . . . . . Retrieved Components . | . . . . . . Parts Scanalyzed . | . . . . . . Part Schematics Acquired . | . . . . . . Parts Damaged . | . . . . . . Bothacking | -11 -10 -10 -9 -9 -7 ------------ Run | Yrd Mat Min Mat Min Zio Used RIF Installer . | . . . . . . Robots Hacked . | . . . . . . Non-combat . | . . . . . . Combat . | . . . . . . Robot Hacks Applied . | . . . . . . Relay Couplers Released . | . . . . . . Fabnet Peak Effective % . | . . . . . . Robots Rewired . | . . . . . . Allies Hacked . | . . . . . . Hacks Repelled . | . . . . . . Allies | -11 -10 -10 -9 -9 -7 -------- Run | Yrd Mat Min Mat Min Zio Total Allies 9 | . . . 2 3 4 Largest Group 4 | . . . 1 3 4 Highest-Rated Group 152 | . . . 5 40 152 Highest-Rated Ally 39 | . . . 5 16 39 Total Orders . | . . . . . . Ally Attacks 23 | . . 3 20 . . Total Damage 106 | . . 15 91 . . Kills 4 | . . 2 2 . . Allies Corrupted . | . . . . . . Allies Melted . | . . . . . . Intel | -11 -10 -10 -9 -9 -7 ------- Run | Yrd Mat Min Mat Min Zio Active Infowar (turns) 432 | . 235 197 . . . Sensors 432 | . 235 197 . . . Robot Analysis Total . | . . . . . . Derelict Logs Recovered 5 | . . 2 . 2 1 Drone Launches 21 | . . 6 15 . . Drone Recoveries 20 | . . 2 18 . . Exploration | -11 -10 -10 -9 -9 -7 ------------- Run | Yrd Mat Min Mat Min Zio Turns Passed 4736 | 88 976 644 1783 444 801 Spaces Moved 3670 | 86 703 517 1073 467 824 Core 17 | 16 1 . . . . Treads 74 | . . . 74 . . Legs 1555 | . 416 517 622 . . Wheels 2024 | 70 286 . 377 467 824 Hover . | . . . . . . Flight . | . . . . . . Fastest Speed 50 | 50 80 120 86 86 86 Average Speed 105 | 74 103 120 124 86 86 Slowest Speed 240 | 80 120 120 240 90 100 Overloaded Moves . | . . . . . . Propulsion Burnouts . | . . . . . . Robots Hopped . | . . . . . . Potential Cave-ins 1 | . . 1 . . . Cave-ins Triggered . | . . . . . . Exploration Rate (%) 71 | 7 94 90 83 76 81 Regions Visited 5 Branch Regions 3 Pre-discovered Areas 5 | . . 1 . 1 3 Known Exits Taken 2 | . 1 1 . . . Unknown Exits Taken 3 | 1 . . 1 1 . Scrap Searched 2 | . . . . 1 1 Spaces Dug . | . . . . . . Terrain Destroyed 108 | . 4 13 59 . 32 Melee . | . . . . . . Projectile . | . . . . . . AOE 108 | . 4 13 59 . 32 Terrain Rammed . | . . . . . . Walls Destroyed . | . . . . . . Machines Disabled . | . . . . . . Actions | -11 -10 -10 -9 -9 -7 --------- Run | Yrd Mat Min Mat Min Zio Total 4190 | 99 841 537 1318 499 896 Wait 157 | . 26 8 41 26 56 Move 3665 | 85 702 516 1072 466 824 Hop . | . . . . . . Pick Up 28 | 4 10 4 10 . . Fast Attach 29 | 5 6 . 17 1 . Attach 8 | . 3 . 2 . 3 Detach 4 | . . . 4 . . Swap 29 | . 7 2 19 . 1 Drop 42 | 1 8 4 28 1 . Fire 208 | 4 70 2 115 5 12 Melee 8 | . 8 . . . . Ram 3 | . 1 . 2 . . Kick 8 | . . 1 7 . . Crush 1 | . . . 1 . . Escape Stasis . | . . . . . . Rewire . | . . . . . . Trap . | . . . . . . Miscellaneous . | . . . . . . Route ------- -11/Scrapyard -10/Materials (discovered 4 exits: *Mat x2 / *Min x2) -10/Mines (discovered 2 exits: *Mat x2) -9/Materials (discovered 3 exits: [*Mat] / [*Min] / *Sto) -9/Mines (discovered 2 exits: [*Mat] / [*Zio]) -7/Zion History --------- Turn | Location | Event 2 | -11/Scrapyard | Met Revision 17 61 | -11/Scrapyard | Discovered new exit (range 8) 89 | -11/Scrapyard | Entered Materials 236 | -10/Materials | Discovered new exit (range 16) 309 | -10/Materials | Build established: Mutant 338 | -10/Materials | Discovered new exit (range 8) 584 | -10/Materials | Core integrity fell below 50% 609 | -10/Materials | Core integrity fell below 20% 632 | -10/Materials | Lost 4 parts (1p2n1w) 801 | -10/Materials | Discovered new exit (range 16) 878 | -10/Materials | Discovered new exit (range 12) 1064 | -10/Materials | Identified exit to Mines 1065 | -10/Materials | Entered Mines 1183 | -10/Mines | Received a Rocket Launcher from a helpful Derelict 1246 | -10/Mines | Learned location of Zion (-7) 1249 | -10/Mines | Found the Drone Emporium 1260 | -10/Mines | Found Prototype Device 1262 | -10/Mines | Identified Splice Drone Bay 1324 | -10/Mines | Assembled infested the area 1356 | -10/Mines | Met 8R-AWN 1384 | -10/Mines | Discovered new exit (range 9) 1397 | -10/Mines | Identified exit to Materials 1432 | -10/Mines | Discovered exit to Materials (range 16) 1486 | -10/Mines | A weapon hastily lodged in a ceiling crevice suddenly fell to the ground 1544 | -10/Mines | Found a hidden stash of uninstalled traps 1709 | -10/Mines | Entered Materials 1709 | -9/Materials | Accompanied by 3 allies 1709 | -9/Materials | Evolved 2 slots: Power x1, Propulsion x1 1710 | -9/Materials | Identified exit to Storage 2488 | -9/Materials | Discovered new exit (range 11) 2687 | -9/Materials | Build established: Scavenger-Mutant 3238 | -9/Materials | Discovered new exit (range 14) 3406 | -9/Materials | Build established: Mutant 3456 | -9/Materials | Lost 5 parts (1p2n1u1w) 3492 | -9/Materials | Entered Mines 3669 | -9/Mines | Assisted by bots powering up and referring to "LRC-V3" 3715 | -9/Mines | Build established: Scavenger-Mutant 3798 | -9/Mines | Learned Materials emergency access door positions 3845 | -9/Mines | A Derelict revealed a hidden shortcut to a safe place 3888 | -9/Mines | Discovered new exit (range 11) 3936 | -9/Mines | Entered Zion 3993 | -7/Zion | System corruption cleaned by Quarantine Array 4083 | -7/Zion | Learned location of 1 exit from Proximity Caves 4212 | -7/Zion | Learned location of Data Miner (-6) 4341 | -7/Zion | Visited the Megawrench Repair Shop 4398 | -7/Zion | Met Imprinter 4431 | -7/Zion | Imprinted 4433 | -7/Zion | Declared Zion's savior 4566 | -7/Zion | Learned location of Quarantine (-2) 4693 | -7/Zion | Attacked by Zionites 4695 | -7/Zion | Spotted U4-3VJ(B) 4703 | -7/Zion | Core integrity fell below 50% 4706 | -7/Zion | Spotted NZ-0B3(B) 4715 | -7/Zion | Destroyed U4-3VJ(B) 4734 | -7/Zion | Core integrity fell below 20% 4737 | -7/Zion | Destroyed by NZ-0B3(B) with Heavy Battle Rifle Last Messages --------------- Ion Engine destroyed. The unstable cave ceiling collapses. TX-O9J(z) bursts out of the Twisted Machinery. The unstable cave ceiling collapses. TX-O9J(z) pulls a Mak. Shrapnel Gun out of the Twisted Machinery. Rocket Launcher destroyed. 6W-0N0(z) knocked back. TX-O9J(z) destroyed. Lgt. Cannon severed. Critical hit (Smash). Core Shielding destroyed. System corrupted by crushing effect (+3). 6W-0N0(z) destroyed. Z1-6O2(z) pulls a Mak. Sword out of the Twisted Machinery. 3N-0JW(z) pulls a Mak. Hammer out of the Twisted Machinery. FND73P#ISOH%HIA:DL&5BJ9S5=O9RDP1 9